Workbook

Sheet Pilotes
A1: CLASSEMENT PROVISOIRE CHALLENGE ASA LOZERE PILOTE 2024
C2: Côte Du Tarn | D2: VAISON la Romaine | E2: Herault | F2: MARCILLAC | G2: Vins Du Gard | H2: Pays Du Gier | I2: Terre Des Causses | J2: Vins Des Corbières | K2: Pays D'Olliergues | L2: Quercy | M2: Lyon Charbonnière | N2: Pays De La Gentiane | O2: Lozère | P2: Val d'Agout | Q2: Terre Des Castines | R2: Coutellerie | S2: Pays Viganais | T2: Val Dadou | U2: Aleria | V2: Saint Geniez D'olt | W2: Ecureuil | X2: Printemps | Y2: Forez | Z2: Gard | AA2: Haut Vallée De La Loire | AB2: Sidobre | AC2: Vallespir | AD2: ROUERGUE | AE2: Bagnols Les Bains | AF2: Montagne Noire | AG2: Fourme D'Ambert | AH2: 24 Périgort | AI2: Saint Afrique | AJ2: Velay Auvergne | AK2: Terre De Lozère | AL2: Cantal | AM2: Haut Lignon | AN2: Terre De Decouverte | AO2: Pays De Saint Yrieix | AP2: Camisards | AQ2: Ardeche | AR2: Terre Des Cardabelles | AS2: Montbrisonnais | AT2: Cevennes | AU2: Mont Domes | AV2: Sarrian | AW2: Pays Rignacois | AX2: Terre du Vaucluse | AY2: Bas Vivarais | AZ2: Fenouilledes | BA2: Noix De Firminy | BB2: Cigalois | BC2: Balagne | BD2: Piémont Orlonnais | BE2: TOTAL
A3: 1 | B3: SERIEYS Jérémie | E3: 32 | J3: 48 | O3: 92 | X3: 32 | Z3: 48 | AE3: 40 | AP3: 32 | AT3: 50 | AZ3: 48 | BB3: 48 | BE3: =SUM(C3:BD3) -> 470
A4: 2 | B4: MOULIN François | C4: 3 | I4: 40 | U4: 50 | AK4: 52 | AR4: 65 | AX4: 55 | BC4: 18 | BE4: 283
A5: 3 | B5: MONNIER Raphaël | E5: 10 | F5: 24 | H5: 12 | N5: 0 | O5: 62 | Y5: 21 | Z5: 12 | AA5: 14 | AE5: 32 | AJ5: 14 | AM5: 15 | AT5: 5 | AW5: 20 | BA5: 14 | BB5: 21 | BE5: 276
A6: 4 | B6: BRAJON Ludovic | I6: 50 | Q6: 55 | U6: 25 | AK6: 52 | AR6: 50 | AX6: 40 | BE6: 272
A7: 5 | B7: MALHAUTIER Ludovic | G7: 20 | O7: 62 | S7: 16 | X7: 16 | Z7: 21 | AE7: 28 | AG7: 12 | AP7: 20 | BE7: 195
A8: 6 | B8: FLEURY Alain | G8: 18 | O8: 47 | Z8: 33 | AE8: 28 | AP8: 22 | AV8: 24 | BE8: 172
A9: 7 | B9: MERLE Roger | O9: 62 | Z9: 30 | AE9: 32 | AP9: 20 | AQ9: 24 | BE9: 168
A10: 8 | B10: LYOTARD Florian | H10: 33 | O10: 67 | Z10: 30 | AE10: 28 | BE10: 158
A11: 9 | B11: CROZAT Frederic | F11: 42 | O11: 6 | V11: 20 | AE11: 44 | AH11: 18 | AO11: 0 | BE11: 130
A12: 10 | B12: BRUNET Thierry | G12: 24 | O12: 32 | S12: 12 | Z12: 6 | AE12: 32 | AG12: 12 | AP12: 6 | AT12: 5 | AY12: 0 | BB12: 0 | BE12: 129
A13: 11 | B13: VAILLE Mickael | I13: 50 | Q13: 0 | AK13: 37 | AR13: 0 | AX13: 35 | BE13: 122
A14: 12 | B14: RAYMOND Eric | I14: 0 | Q14: 0 | T14: 32 | AD14: 25 | AR14: 40 | BD14: 22 | BE14: 119
A15: 13 | B15: HOUBERDON Thierry | E15: 12 | F15: 21 | O15: 12 | Z15: 18 | AE15: 24 | AL15: 10 | AU15: 21 | BE15: 118
A16: 14 | B16: BLANC Bruno | E16: 14 | F16: 30 | O16: 6 | AD16: 25 | AT16: 40 | BE16: 115
A17: 15 | B17: DECHANET Alexandre | AK17: 62 | AX17: 50 | BE17: 112
A18: 16 | B18: PAGANI Jordy | O18: 47 | V18: 4 | AE18: 24 | AL18: 14 | AP18: 12 | AW18: 8 | BE18: 109
A19: 17 | B19: TABUSSE Sylvain | E19: 0 | O19: 37 | V19: 2 | Z19: 18 | AE19: 22 | AP19: 0 | AV19: 12 | AW19: 2 | BE19: 93
A20: 17 | B20: BLANC David | O20: 47 | AE20: 6 | AP20: 16 | BB20: 24 | BE20: 93
A21: 19 | B21: FRAISSE Serge | J21: 0 | O21: 6 | S21: 0 | Z21: 33 | AC21: 12 | AE21: 26 | AI21: 0 | AQ21: 0 | BB21: 15 | BE21: 92
A22: 20 | B22: GOUT Jonathan | E22: 12 | G22: 22 | O22: 6 | AP22: 22 | AQ22: 0 | AY22: 26 | BE22: 88
A23: 21 | B23: ANDRE Gérard | E23: 8 | O23: 27 | V23: 0 | AL23: 16 | AW23: 24 | AY23: 12 | BE23: 87
A24: 22 | B24: OLMI Gaëtan | E24: 6 | G24: 8 | J24: 12 | O24: 6 | S24: 10 | X24: 12 | Z24: 0 | AC24: 24 | AP24: 0 | AQ24: 0 | AY24: 8 | BE24: 86
A25: 22 | B25: PANSARD Olivier | AK25: 6 | AX25: 80 | BE25: 86
A26: 24 | B26: LAURAIRE Samuel | E26: 12 | F26: 0 | Z26: 18 | AE26: 26 | AG26: 4 | AL26: 16 | AW26: 2 | BE26: 78
A27: 25 | B27: ROUSSET Eric | F27: 24 | M27: 0 | AK27: 52 | AR27: 0 | BE27: 76
A28: 26 | B28: RICARD Kévin | V28: 10 | AE28: 22 | AJ28: 16 | AL28: 16 | BE28: 64
A29: 27 | B29: CRESPIN Bruno | O29: 47 | Z29: 15 | AQ29: 0 | AZ29: 0 | BE29: 62
A30: 27 | B30: LEMEUNIER Rudy | AK30: 12 | AR30: 50 | AX30: 0 | BE30: 62
A31: 27 | B31: VELAY Mickael | G31: 10 | O31: 6 | S31: 12 | X31: 14 | AT31: 20 | BB31: 0 | BE31: 62
A32: 30 | B32: LECOINTRE Nicky | O32: 32 | AE32: 26 | BE32: 58
A33: 31 | B33: PROUZET Boris | S33: 16 | AT33: 40 | BB33: 0 | BE33: 56
A34: 32 | B34: VIALLE Samuel | V34: 0 | AE34: 32 | AP34: 22 | BE34: 54
A35: 33 | B35: COT Grégory | S35: 10 | AE35: 26 | AP35: 0 | AV35: 16 | BE35: =SUM(C35:BD35) -> 52
A36: 34 | B36: ROUX Cédric | AE36: 6 | AG36: 14 | AP36: 16 | BB36: 15 | BE36: 51
A37: 35 | B37: BERANGIER Clément | AX37: 50 | BE37: 50
A38: 36 | B38: PASSEMARD Sébastien | Q38: 35 | AK38: 12 | AR38: 0 | BE38: 47
A39: 36 | B39: CASTELBOU Franck | F39: 21 | O39: 12 | V39: 14 | AI39: 0 | BE39: 47
A40: 38 | B40: AFFORTIT Quentin | O40: 6 | Z40: 12 | AE40: 18 | AP40: 8 | BE40: 44
A41: 38 | B41: LIAUTARD Yann | AP41: 14 | BB41: 30 | BE41: 44
A42: 40 | B42: ALVARD Quentin | O42: 42 | BE42: 42
A43: 40 | B43: SAUCE Raphael | O43: 42 | BE43: 42
A44: 42 | B44: BARBERA Frédéric | AF44: 3 | AT44: 25 | BB44: 12 | BE44: 40
A45: 43 | B45: LONGEAC Yoann | U45: 0 | AE45: 14 | AN45: 20 | BE45: 34
A46: 44 | B46: BOUTIN Lionel | O46: 6 | AS46: 27 | BE46: 33
A47: 45 | B47: MARTEL Hervé | G47: 4 | O47: 28 | BE47: 32
A48: 45 | B48: LEBORNE Bastien | AE48: 32 | AJ48: 0 | BE48: 32
A49: 45 | B49: ARGILIER Frederic | G49: 2 | O49: 6 | Z49: 6 | AE49: 16 | AP49: 2 | BE49: 32
A50: 45 | B50: PALMER Camille | AE50: 22 | AP50: 10 | AY50: 0 | BE50: 32
A51: 45 | B51: VALENTIN Cyril | J51: 0 | O51: 6 | Z51: 0 | AP51: 14 | AZ51: 0 | BB51: 12 | BE51: 32
A52: 45 | B52: HEBRARD Michel | AE52: 6 | AY52: 8 | BB52: 18 | BE52: 32
A53: 51 | B53: BERTRAND David | S53: 0 | AB53: 14 | AI53: 16 | BE53: 30
A54: 52 | B54: BRES Vincent | I54: 25 | AR54: 0 | BE54: 25
A55: 53 | B55: VEYRUN Guillaume | G55: 18 | O55: 6 | BE55: 24
A56: 53 | B56: FERRIER Jérôme | O56: 6 | AE56: 18 | BE56: 24
A57: 55 | B57: VAZ DOS SANTOS Kevin | O57: 6 | AE57: 6 | AL57: 10 | AU57: 0 | BE57: 22
A58: 56 | B58: MARCILLAC Arnaud | V58: 20 | BE58: 20
A59: 56 | B59: FAURE Michael | AE59: 18 | AY59: 2 | BE59: 20
A60: 58 | B60: RAOUX Patrice | G60: 0 | O60: 6 | AE60: 6 | AK60: 6 | BE60: 18
A61: 59 | B61: DELBOS David | G61: 4 | O61: 6 | AE61: 6 | BE61: 16
A62: 59 | B62: TEYSSIER Frédéric | AY62: 16 | BB62: 0 | BE62: 16
A63: 61 | B63: ROCHER Arnaud | C63: 3 | I63: 0 | U63: 0 | AK63: 6 | AR63: 0 | BC63: 6 | BE63: 15
A64: 62 | B64: BARDIN Cyril | L64: 14 | BE64: 14
A65: 62 | B65: Vaille Pierre Erik | AN65: 14 | BE65: 14
A66: 64 | B66: GINIER Kévin | E66: 2 | R66: 2 | V66: 0 | AE66: 6 | AY66: 2 | BE66: 12
A67: 65 | B67: PASCAL Regis | R67: 2 | V67: 2 | AE67: 6 | BE67: =SUM(C67:BD67) -> 10
A68: 65 | B68: BARTHOLOME Patricde | AP68: 10 | BE68: 10
A69: 67 | B69: VIGUIER Thierry | D69: 0 | S69: 0 | AF69: 9 | AZ69: 0 | BE69: 9
A70: 68 | B70: PLAN Matthieu | K70: 0 | O70: 6 | BE70: 6
A71: 68 | B71: PASCAL Joris | AE71: 6 | BE71: 6
A72: 68 | B72: BRES Bruno | AK72: 6 | BE72: 6
A73: 68 | B73: PANSARD Frédéric | AK73: 6 | AX73: 0 | BE73: 6
A74: 68 | B74: CONTANS Lionel | AK74: 6 | BE74: 6
A75: 73 | B75: MEYNADIER Thierry | E75: 0 | L75: 0 | BE75: 0

Sheet Copilotes
U1: CLASSEMENT PROVISOIRE CHALLENGE CO-PILOTE ASA LOZERE 2024
C2: gonfaron | D2: Rallye Haute - Azergue | E2: VAISON la Romaine | F2: Côte Du Tran | G2: Baldomérien | H2: Pays Ajassiens | I2: Herault | J2: Haute provense | K2: Touquet | L2: Marcillac | M2: Vins Du Gard | N2: Pays Du Gier | O2: Cœur Des Bastides | P2: Vins Des Corbières | Q2: Pays D'Olliergues | R2: Venasque | S2: Ronde De La Giraglia | T2: Balcon Est Du Vercors | U2: Autocourse | V2: Quercy | W2: Lyon Charbonnière | X2: Pays De La Gentiane | Y2: Terre Des Causses | Z2: Lozère | AA2: Val D'agout | AB2: Terre Des Castines | AC2: Lorraine | AD2: Bligny S ur Ouche | AE2: Coutellerie | AF2: Pays Viganais | AG2: Val Dadou | AH2: Aleria | AI2: Saint Geniez D'olt | AJ2: Ecureuil | AK2: Laragnais | AL2: Printemps | AM2: Forez | AN2: Voges | AO2: Gard | AP2: Haute Vallée De La Loire | AQ2: Sidobre | AR2: Vallespir | AS2: Rouergue | AT2: Sibiului Bilstein | AU2: Bagols Les Bains | AV2: Drôme Paul Frideman | AW2: Montagne Noire | AX2: Fourme D'Ambert | AY2: Piémont Oloronnais | AZ2: Bourgogne Côte Chalonnaise | BA2: Perigort 24 | BB2: Sel | BC2: Saint Afique | BD2: Pays Basque | BE2: Velay Auvergne | BF2: Terre DE Lozere | BG2: Cantal | BH2: Picodon | BI2: Mont Blanc | BJ2: Pays De Fayence | BK2: Haut Ligon | BL2: Terre DE Decouverte | BM2: Chasselas | BN2: Camisards | BO2: Ardeche | BP2: Terre Des Cardabelles | BQ2: Fium Orbu Castellu | BR2: Montbrisonnais | BS2: Tour De Corse | BT2: Midi Toulousain | BU2: Gap Racing | BV2: autun | BW2: Cevennes | BX2: Mont domes | BY2: Sarrians | BZ2: Pays Rignacois | CA2: Terre Du Vaucluse | CB2: Bas Vivarais | CC2: Fenouilledes | CD2: Var | CE2: Noix De Firminy | CF2: Cigalois | CG2: Balagne | CH2: TOTAL
A3: 1 | B3: CRESPIN Stéphane | I3: 32 | P3: 48 | Z3: 92 | AL3: 32 | AO3: 48 | AU3: 40 | BA3: 18 | BN3: 32 | BW3: 50 | CC3: 48 | CF3: 48 | CH3: =SUM(C3:CG3) -> 488
A4: 2 | B4: TURIERE Frédéric | F4: 3 | Y4: 40 | AF4: 10 | AH4: 50 | BF4: 52 | BP4: 65 | CA4: 55 | CB4: 8 | CG4: 18 | CH4: =SUM(C4:CG4) -> 301
A5: 3 | B5: SALANSON Thierry | Y5: 50 | Z5: 12 | AB5: 55 | BF5: 52 | BP5: 50 | CA5: 40 | CH5: =SUM(C5:CG5) -> 259
A6: 4 | B6: GAVET Brice | F6: 0 | K6: 50 | W6: 50 | AH6: 0 | AS6: 15 | BF6: 62 | BM6: 22 | CH6: =SUM(C6:CG6) -> 199
A7: 5 | B7: MERLE Mark | Z7: 62 | AO7: 30 | AU7: 32 | BN7: 20 | BO7: 24 | CF7: 15 | CH7: =SUM(C7:CG7) -> 183
A8: 6 | B8: LYOTARD Arnault | M8: 33 | Z8: 67 | AO8: 30 | AU8: 28 | CH8: =SUM(C8:CG8) -> 158
A9: 7 | B9: COUZON Sandrine | Y9: 50 | Z9: 22 | AB9: 0 | AX9: 0 | BF9: 37 | BL9: 14 | BP9: 0 | CA9: 35 | CH9: =SUM(C9:CG9) -> 158
A10: 7 | B10: MONNIER Anthony | Z10: 62 | AP10: 14 | AU10: 32 | BW10: 5 | BZ10: 20 | CF10: 21 | CH10: =SUM(C10:CG10) -> 154
A11: 9 | B11: BACON Guillaume | M11: 18 | Z11: 47 | AO11: 33 | AU11: 28 | BY11: 24 | CH11: =SUM(C11:CG11) -> 150
A12: 10 | B12: GINIER Valérie | I12: 12 | L12: 21 | Y12: 25 | AI12: 10 | AO12: 18 | AU12: 24 | BF12: 6 | BG12: 10 | BX12: 21 | CH12: =SUM(C12:CG12) -> 147
A13: 10 | B13: LEON Thierry | E13: 24 | M13: 10 | R13: 33 | AB13: 0 | AH13: 80 | BS13: 0 | CH13: =SUM(C13:CG13) -> 147
A14: 12 | B14: VIALLE Clément | G14: 0 | V14: 14 | Z14: 42 | AI14: 0 | AS14: 0 | AU14: 32 | BN14: 22 | BR14: 27 | CH14: =SUM(C14:CG14) -> 137
A15: 13 | B15: RUFFONI Mickaël | AK15: 12 | BF15: 62 | CA15: 50 | CH15: =SUM(C15:CG15) -> 124
A16: 14 | B16: PRIVAT Thibault | Y16: 40 | BF16: 32 | BI16: 20 | CA16: 30 | CH16: =SUM(C16:CG16) -> 122
A17: 15 | B17: GROLIER Cédric | I17: 14 | L17: 30 | Z17: 6 | AS17: 25 | BW17: 40 | CH17: =SUM(C17:CG17) -> 115
A18: 15 | B18: DALLE Océane | L18: 9 | AA18: 24 | AG18: 4 | AI18: 0 | AS18: 40 | BD18: 24 | BT18: 12 | BZ18: 2 | CH18: =SUM(C18:CG18) -> 115
A19: 17 | B19: CRESPIN Lucas | L19: 42 | Z19: 6 | AI19: 20 | AU19: 44 | CH19: =SUM(C19:CG19) -> 112
A20: 18 | B20: ASSENAT Jean-François | Z20: 32 | AF20: 12 | AO20: 6 | AU20: 32 | BN20: 6 | BQ20: 16 | BW20: 5 | CB20: 0 | CH20: =SUM(C20:CG20) -> 109
A21: 18 | B21: ROBERT Philippe | Z21: 47 | AI21: 4 | AU21: 24 | BG21: 14 | BN21: 12 | BZ21: 8 | CH21: =SUM(C21:CG21) -> 109
A22: 20 | B22: VOTTCHALL Christophe | Y22: 25 | AB22: 0 | BF22: 6 | BN22: 2 | BY22: 16 | CD22: 50 | CH22: =SUM(C22:CG22) -> 99
A23: 21 | B23: RAYMOND Nathaly | AG23: 32 | AS23: 25 | BP23: 40 | CH23: =SUM(C23:CG23) -> 97
A24: 22 | B24: AUBERT Jordan | I24: 12 | M24: 22 | S24: 0 | AR24: 21 | BN24: 22 | BO24: 0 | BW24: 5 | CF24: 12 | CH24: =SUM(C24:CG24) -> 94
A25: 23 | B25: MONDIERE Benjamin | H25: 39 | K25: 5 | N25: 0 | W25: 0 | AC25: 0 | AD25: 18 | AN25: 0 | AZ25: 0 | BJ25: 12 | BS25: 0 | BV25: 18 | CH25: =SUM(C25:CG25) -> 92
A26: 23 | B26: NOEL Linda | C26: 0 | F26: 12 | I26: 18 | J26: 0 | P26: 0 | Z26: 6 | AK26: 0 | AU26: 6 | AX26: 4 | BE26: 20 | BN26: 14 | CB26: 12 | CH26: =SUM(C26:CG26) -> 92
A27: 23 | B27: GAUSSENT Florence | P27: 0 | Z27: 6 | AF27: 0 | AO27: 33 | AR27: 12 | AU27: 26 | BO27: 0 | CF27: 15 | CH27: =SUM(C27:CG27) -> 92
A28: 26 | B28: TABUSSE Manuela | I28: 0 | Z28: 37 | AO28: 18 | AU28: 22 | BY28: 12 | BZ28: 2 | CH28: =SUM(C28:CG28) -> 91
A29: 26 | B29: LOMBARDI Enzo | Z29: 6 | BU29: 32 | CD29: 5 | CF29: 48 | CH29: =SUM(C29:CG29) -> 91
A30: 28 | B30: VALENTIN Cédric | I30: 8 | Z30: 27 | AE30: 2 | AI30: 0 | BG30: 16 | BZ30: 24 | CB30: 12 | CH30: =SUM(C30:CG30) -> 89
A31: 29 | B31: PANSARD Célia | BF31: 6 | CA31: 80 | CH31: =SUM(C31:CG31) -> 86
A32: 30 | B32: COMBOROURE Benoît | T32: 0 | Z32: 6 | AJ32: 21 | AV32: 21 | BH32: 16 | BO32: 0 | BY32: 8 | CB32: 8 | CH32: =SUM(C32:CG32) -> 80
A33: 31 | B33: GELY Pauline | I33: 12 | L33: 0 | AO33: 18 | AU33: 26 | AX33: 4 | BG33: 16 | BZ33: 2 | CH33: =SUM(C33:CG33) -> 78
A34: 32 | B34: SAUCE Christophe | L34: 24 | W34: 0 | BF34: 52 | BP34: 0 | CH34: =SUM(C34:CG34) -> 76
A35: 33 | B35: ABELLAN Benoît | AF35: 10 | AU35: 26 | BY35: 16 | CC35: 21 | CH35: =SUM(C35:CG35) -> 73
A36: 34 | B36: DERORY Julie | AE36: 20 | BX36: 48 | CH36: =SUM(C36:CG36) -> 68
A37: 34 | B37: HONORE Clarisse | I37: 6 | M37: 8 | P37: 12 | Z37: 6 | AL37: 12 | AO37: 0 | AU37: 6 | BO37: 0 | CF37: 18 | CH37: =SUM(C37:CG37) -> 68
A38: 36 | B38: ANDRE Romain | Z38: 47 | AO38: 15 | BO38: 0 | CC38: 0 | CH38: =SUM(C38:CG38) -> 62
A39: 36 | B39: LAURAIRE Samuel | AJ39: 48 | BB39: 14 | CH39: =SUM(C39:CG39) -> 62
A40: 38 | B40: CAMINADA Michel | Z40: 52 | CH40: =SUM(C40:CG40) -> 52
A41: 38 | B41: RAYMOND Marie-Amélie | L41: 0 | AX41: 10 | AY41: 22 | BC41: 10 | BY41: 10 | CH41: =SUM(C41:CG41) -> 52
A42: 40 | B42: VIGNES Guillaume | M42: 10 | Z42: 6 | AL42: 14 | BW42: 20 | CH42: =SUM(C42:CG42) -> 50
A43: 40 | B43: BARTHOLOME Patrice | BN43: 10 | BW43: 40 | CH43: =SUM(C43:CG43) -> 50
A44: 42 | B44: HUGON Jean François | M44: 12 | X44: 0 | AM44: 21 | BK44: 15 | CH44: =SUM(C44:CG44) -> 48
A45: 43 | B45: RAUZIER Alban | Z45: 47 | CH45: =SUM(C45:CG45) -> 47
A46: 44 | B46: PALMER Camille | I46: 10 | L46: 24 | AO46: 12 | CH46: =SUM(C46:CG46) -> 46
A47: 45 | B47: HILAIRE Antoine | O47: 14 | AF47: 6 | AI47: 0 | AW47: 24 | CH47: =SUM(C47:CG47) -> 44
A48: 45 | B48: SERVIERES Florian | Z48: 6 | AO48: 12 | AU48: 18 | BN48: 8 | CH48: =SUM(C48:CG48) -> 44
A49: 45 | B49: LIAUTARD Sonia | BN49: 14 | CF49: 30 | CH49: =SUM(C49:CG49) -> 44
A50: 48 | B50: LEONARD Flavio | Z50: 42 | CH50: =SUM(C50:CG50) -> 42
A51: 49 | B51: AYRAL Axel | AL51: 0 | AW51: 3 | BW51: 25 | CF51: 12 | CH51: =SUM(C51:CG51) -> 40
A52: 49 | B52: ROBLIN Mathieu | CA52: 40 | CH52: =SUM(C52:CG52) -> 40
A53: 51 | B53: BIANCHETTO Julie | AF53: 0 | AQ53: 14 | BC53: 16 | BN53: 8 | CH53: =SUM(C53:CG53) -> 38
A54: 52 | B54: LARGUIER Stéphan | AO54: 18 | BN54: 18 | CH54: =SUM(C54:CG54) -> 36
A55: 52 | B55: PRIVAT Christophe | Z55: 6 | BP55: 30 | CH55: =SUM(C55:CG55) -> 36
A56: 54 | B56: PASSEMARD Virginie | AB56: 35 | BP56: 0 | CA56: 0 | CH56: =SUM(C56:CG56) -> 35
A57: 55 | B57: BRUN Elodie | AH57: 0 | AU57: 14 | BL57: 20 | CH57: =SUM(C57:CG57) -> 34
A58: 56 | B58: GARD Rémi | Z58: 32 | CH58: =SUM(C58:CG58) -> 32
A59: 56 | B59: MARTEL Catherine | M59: 4 | Z59: 28 | CH59: =SUM(C59:CG59) -> 32
A60: 56 | B60: LETIENT Océane | AU60: 22 | BN60: 10 | CB60: 0 | CH60: =SUM(C60:CG60) -> 32
A61: 59 | B61: BELTRAN Jordan | M61: 4 | Z61: 6 | AF61: 14 | AU61: 6 | CH61: =SUM(C61:CG61) -> 30
A62: 59 | B62: AUBIN Clement | M62: 2 | Z62: 6 | AO62: 6 | AU62: 16 | CH62: =SUM(C62:CG62) -> 30
A63: 59 | B63: MONNIER Léo | BE63: 14 | CE63: 16 | CH63: =SUM(C63:CG63) -> 30
A64: 59 | B64: BLANC Noah | AU64: 6 | CF64: 24 | CH64: =SUM(C64:CG64) -> 30
A65: 63 | B65: BRUN Grégory | AX65: 14 | BC65: 14 | CH65: =SUM(C65:CG65) -> 28
A66: 63 | B66: RAOUX Justin | M66: 0 | U66: 10 | Z66: 6 | AU66: 6 | BF66: 6 | CH66: =SUM(C66:CG66) -> 28
A67: 65 | B67: HOUBERDON Thierry | AH67: 25 | CH67: =SUM(C67:CG67) -> 25
A68: 66 | B68: MAURIN Ludovic | Z68: 6 | AU68: 18 | CH68: =SUM(C68:CG68) -> 24
A69: 67 | B69: VAZ DOS SANTOS Lucas | Z69: 6 | AU69: 6 | BG69: 10 | BX69: 0 | CH69: =SUM(C69:CG69) -> 22
A70: 68 | B70: LAFON Cyril | BC70: 10 | BG70: 10 | CH70: =SUM(C70:CG70) -> 20
A71: 69 | B71: BERENGIER Clément | Z71: 6 | AV71: 12 | BP71: 0 | CH71: =SUM(C71:CG71) -> 18
A72: 70 | B72: CHALVIDAN Matthis | AF72: 16 | CH72: =SUM(C72:CG72) -> 16
A73: 70 | B73: LEBORNE Bastien | BN73: 16 | CH73: =SUM(C73:CG73) -> 16
A74: 70 | B74: BLANC Clement | BN74: 16 | CH74: =SUM(C74:CG74) -> 16
A75: 73 | B75: ALVARD Quentin | M75: 10 | BW75: 5 | CH75: =SUM(C75:CG75) -> 15
A76: 73 | B76: PAULHAN Sabine | F76: 3 | Y76: 0 | AH76: 0 | BF76: 6 | BP76: 0 | CG76: 6 | CH76: =SUM(C76:CG76) -> 15
A77: 75 | B77: CASTELBOU Adrien | AI77: 14 | CH77: =SUM(C77:CG77) -> 14
A78: 75 | B78: MALZIEU Joris | AU78: 14 | CH78: =SUM(C78:CG78) -> 14
A79: 75 | B79: MALZIEU Anthony | CE79: 14 | CH79: =SUM(C79:CG79) -> 14
A80: 78 | B80: MARTI Nicolas | I80: 10 | CH80: =SUM(C80:CG80) -> 10
A81: 79 | B81: MONTEIL Clara | I81: 2 | AI81: 0 | AU81: 6 | CB81: 2 | CH81: =SUM(C81:CG81) -> 10
A82: 79 | B82: RIEU Maxime | D82: 0 | G82: 0 | CB82: 8 | CH82: =SUM(C82:CG82) -> 8
A83: 81 | B83: JORIS Jessy | AU83: 6 | CH83: =SUM(C83:CG83) -> 6
A84: 81 | B84: PLAN Arnaud | Q84: 0 | Z84: 6 | CH84: =SUM(C84:CG84) -> 6
A85: 81 | B85: BRAGER Michèle | Z85: 6 | CH85: =SUM(C85:CG85) -> 6
A86: 81 | B86: GINESTE Alexis | AI86: 2 | AX86: 4 | CH86: =SUM(C86:CG86) -> 6
A87: 81 | B87: PHILIP Christhophe | BF87: 6 | CH87: =SUM(C87:CG87) -> 6
A88: 86 | B88: LEGAL Joris | M88: 4 | CH88: =SUM(C88:CG88) -> 4
A89: 86 | B89: PASCAL Joris | X89: 0 | AE89: 2 | AI89: 2 | CH89: =SUM(C89:CG89) -> 4
A90: 88 | B90: ROUVIERE Alain | BN90: 2 | CH90: =SUM(C90:CG90) -> 2
A91: 88 | B91: PASSEMARD Sebastien | AX91: 2 | CH91: =SUM(C91:CG91) -> 2
A92: 90 | B92: BONNAL Sylvain | AI92: 0 | CH92: =SUM(C92:CG92) -> 0
A93: 105 | B93: CAYUELA Thomas | M93: 0 | CH93: =SUM(C93:CG93) -> 0
A94: 113 | B94: CASTELBOU Ines | BC94: 0 | CH94: =SUM(C94:CG94) -> 0
A95: 113 | B95: PRIVAT Xavier | I95: 0 | V95: 0 | CH95: =SUM(C95:CG95) -> 0
A96: 113 | B96: MARITORENA PENA Alizée | BF96: 0 | CA96: 0 | CH96: =SUM(C96:CG96) -> 0

Sheet Montagne
A1: CLASSEMENT PROVISOIRE CHALLENGE MONTAGNE ASA LOZERE 2024
C2: Les Abarines | D2: ESPALION | E2: Lodève | F2: BAGNOLS SABRAN | G2: Col St Pierre | H2: Col De Ferrier | I2: Sumène | J2: La Sumene | K2: Roquefort | L2: Quillan Régionale | M2: Quillan Nationale | N2: Issoire | O2: Istres | P2: Pin | Q2: Revel | R2: beaugolais | S2: Courpiere | T2: MALENE | U2: Col Du Fau | V2: Col De Font Romeu | W2: Cacharat | X2: Mont Dore | Y2: Saint Antonin | Z2: Laussone | AA2: Chanrousse | AB2: Turckheim | AC2: Pompidou | AD2: Neffies | AE2: TOTAL
A3: 1 | B3: CAZALENS Joël | D3: 32 | E3: 80 | F3: 80 | G3: 80 | K3: 32 | L3: 16 | M3: 55 | Q3: 32 | T3: 30 | U3: 22 | V3: 22 | X3: 35 | Y3: 32 | AC3: 34 | AD3: 18 | AE3: =SUM(C3:AD3) -> 600
A4: 2 | B4: SIMON Richard | E4: 45 | F4: 50 | G4: 50 | M4: 65 | R4: 60 | X4: 55 | AB4: 55 | AC4: 34 | AE4: 414
A5: 3 | B5: MARCILLAC Arnaud | C5: 32 | D5: 24 | F5: 40 | G5: 35 | I5: 22 | K5: 32 | S5: 26 | T5: 44 | U5: 32 | V5: 32 | Y5: 16 | AC5: 28 | AD5: 16 | AE5: 379
A6: 4 | B6: MONZIOLS Cédric | D6: 26 | E6: 55 | F6: 5 | G6: 20 | I6: 16 | K6: 18 | S6: 8 | T6: 44 | U6: 28 | V6: 22 | Y6: 16 | AC6: 40 | AD6: 24 | AE6: 322
A7: 5 | B7: RECORDIER Jean-Marie | E7: 40 | F7: 10 | G7: 25 | H7: 60 | L7: 28 | M7: 55 | O7: 10 | R7: 20 | T7: 36 | AE7: 284
A8: 6 | B8: RICARD Kévin | D8: 12 | E8: 25 | F8: 25 | G8: 25 | J8: 10 | N8: 10 | Q8: 28 | S8: 10 | T8: 22 | W8: 10 | X8: 40 | Y8: 28 | AC8: 22 | AD8: 12 | AE8: 279
A9: 7 | B9: VAUTRIN Eric | E9: 25 | F9: 40 | G9: 40 | O9: 12 | T9: 32 | U9: 24 | V9: 24 | AA9: 30 | AC9: 24 | AE9: 251
A10: 8 | B10: CHOQUET Arnaud | D10: 20 | E10: 50 | G10: 35 | K10: 20 | Q10: 14 | T10: 24 | U10: 14 | V10: 14 | Y10: 18 | AC10: 20 | AE10: 229
A11: 9 | B11: TEYSSIER Frederic | C11: 16 | E11: 55 | F11: 40 | G11: 25 | I11: 20 | T11: 28 | AC11: 26 | AE11: 210
A12: 10 | B12: TABUSSE Sylvain | C12: 20 | F12: 25 | I12: 14 | T12: 30 | Z12: 20 | AC12: 24 | AE12: 133
A13: 11 | B13: MONZIOLS Alexis | D13: 12 | E13: 20 | S13: 2 | T13: 32 | AC13: 20 | AD13: 8 | AE13: 94
A14: 12 | B14: GIRE Sebastien | I14: 24 | L14: 14 | U14: 10 | V14: 10 | AC14: 22 | AD14: 14 | AE14: 94
A15: 13 | B15: GIRE Damien | I15: 12 | L15: 10 | T15: 18 | U15: 2 | V15: 2 | AC15: 22 | AD15: 10 | AE15: 76
A16: 14 | B16: MIAZGOWSKI Gilles | K16: 12 | Q16: 8 | S16: 2 | T16: 22 | AC16: 24 | AD16: 4 | AE16: 72
A17: 15 | B17: MONTEIL Dominique | N17: 10 | T17: 32 | AC17: 26 | AE17: 68
A18: 16 | B18: CASTELBOU Franck | D18: 30 | T18: 34 | AE18: 64
A19: 17 | B19: CASTELBOU Adrien | D19: 24 | T19: 40 | AE19: 64
A20: 18 | B20: BRUNET Thierry | C20: 20 | T20: 44 | AE20: 64
A21: 19 | B21: MAURIN Jean-François | T21: 22 | AC21: 20 | AE21: 42
A22: 20 | B22: LOUBAUD Marcel | C22: 2 | I22: 4 | T22: 14 | Z22: 2 | AC22: 18 | AE22: 40
A23: 21 | B23: LEBORNE Bastien | T23: 32 | AE23: 32
A24: 22 | B24: LACAN Benoît | D24: 14 | N24: 16 | AE24: 30
A25: 23 | B25: LAURET Jérôme | T25: 26 | AE25: 26
A26: 24 | B26: HEBRARD Michel | T26: 26 | AE26: 26
A27: 25 | B27: AFFORTIT Quentin | AC27: 24 | AE27: 24
A28: 26 | B28: VEYRUN Guillaume | C28: 22 | AE28: 22
A29: 27 | B29: RAYMOND Eric | K29: 22 | AE29: 22
A30: 28 | B30: ROUX Cedric | T30: 22 | AE30: 22
A31: 29 | B31: SIMON Manon | K31: 18 | AE31: 18
A32: 30 | B32: KUENEMANN Katia | I32: 2 | T32: 14 | AE32: 16
A33: 31 | B33: VAZ DOS SANTOS Kévin | C33: 14 | AE33: 14
A34: 32
A35: 33
A36: 34
A37: 35
A38: 36
A39: 37
A40: 38
A41: 39
A42: 40
A43: 41
A44: 42
A45: 43
A46: 44
A47: 45
A48: 46
A49: 47
A50: 48
A51: 49
A52: 50
A53: 51
A54: 52
A55: 53
A56: 54
A57: 55
A58: 56
A59: 57
A60: 58
A61: 59
A62: 60
A63: 61
A64: 62
A65: 63
A66: 64
A67: 65
A68: 66
A69: 67
A70: 68
A71: 69
A72: 70
A73: 71
A74: 72
A75: 73
A76: 74
A77: 75
A78: 76
A79: 77
A80: 78
A81: 79
A82: 80
A83: 81
A84: 82
A85: 83
A86: 84
A87: 85
A88: 86
A89: 87
A90: 88
A91: 89
A92: 90
A93: 91
A94: 92
A95: 93
A96: 94
A97: 95
A98: 96
A99: 97
A100: 98
A101: 99
A102: 100
A103: 101
A104: 102
A105: 103
A106: 104
A107: 105
A108: 106
A109: 107
A110: 108
A111: 109
A112: 110
A113: 111
A114: 112
A115: 113
A116: 114
A117: 115
A118: 116
A119: 117
A120: 118
A121: 119
A122: 120
A123: 121
A124: 122
A125: 123
A126: 124
A127: 125
A128: 126
A129: 127
A130: 128
A131: 129
A132: 130
A133: 131
A134: 132
A135: 133
A136: 134
A137: 135
A138: 136
A139: 137
A140: 138
A141: 139
A142: 140
A143: 141
A144: 142
A145: 143
A146: 144
A147: 145
A148: 146
A149: 147
A150: 148
A151: 149
A152: 150
A153: 151
A154: 152
A155: 153
A156: 154
A157: 155
A158: 156
A159: 157
A160: 158
A161: 159
A162: 160
A163: 161
A164: 162
A165: 163
A166: 164
A167: 165
A168: 166
A169: 167
A170: 168
A171: 169
A172: 170
A173: 171
A174: 172
A175: 173
A176: 174
A177: 175
A178: 176
A179: 177
A180: 178
A181: 179
A182: 180
A183: 181
A184: 182
A185: 183
A186: 184
A187: 185
A188: 186
A189: 187
A190: 188
A191: 189
A192: 190
A193: 191
A194: 192
A195: 193
A196: 194
